fUSD/lending_fUSD_20241016
["ID","MTS","AMOUNT","RATE_DAILY","PERIOD"]
[340327737,1729049447516,-500.0,0.00010958,2]
[340327738,1729049447525,-2183.56,0.00010958,2]
[340327739,1729049447535,-840.22,0.00010958,2]
[340327740,1729049447544,-2183.56,0.00010958,2]
[340327741,1729049447554,-840.22,0.00010958,2]
[340327742,1729049447563,-538.07907731,0.00010958,2]
[340327743,1729049447572,-617.04804657,0.00010958,2]
[340327744,1729049447582,-500.0,0.00010958,2]
[340327745,1729049447591,-500.0,0.00010958,2]
[340327746,1729049447602,-500.0,0.00010958,2]
[340327747,1729049447611,-500.0,0.00010958,2]
[340327748,1729049447620,-500.0,0.00010958,2]
[340327749,1729049447629,-500.0,0.00010958,2]
[340327750,1729049447639,-500.0,0.00010958,2]
[340327751,1729049447648,-500.0,0.00010958,2]
[340327752,1729049447657,-500.0,0.00010958,2]
[340327753,1729049447667,-500.0,0.00010958,2]
[340327754,1729049447676,-500.0,0.00010958,2]
[340327755,1729049447685,-500.0,0.00010958,2]
[340327756,1729049447695,-500.0,0.00010958,2]
[340327757,1729049447707,-500.0,0.00010958,2]
[340327758,1729049447716,-500.0,0.00010958,2]
[340327759,1729049447725,-500.0,0.00010958,2]
[340327760,1729049447735,-500.0,0.00010958,2]
[340327761,1729049447744,-601.15,0.00010958,2]
[340327762,1729049447753,-500.0,0.00010958,2]
[340327763,1729049447764,-500.0,0.00010958,2]
[340327764,1729049447773,-601.15,0.00010958,2]
[340327765,1729049447782,-500.0,0.00010958,2]
[340327766,1729049447792,-500.0,0.00010958,2]
[340327767,1729049447801,-500.0,0.00010958,2]
[340327768,1729049447811,-601.15,0.00010958,2]
[340327769,1729049447821,-500.0,0.00010958,2]
[340327770,1729049447833,-500.0,0.00010958,2]
[340327771,1729049447844,-601.15,0.00010958,2]
[340327772,1729049447855,-500.0,0.00010958,2]
[340327773,1729049447864,-601.15,0.00010958,2]
[340327774,1729049447873,-500.0,0.00010958,2]
[340327775,1729049447883,-500.0,0.00010958,2]
[340327776,1729049447895,-500.0,0.00010958,2]
[340327777,1729049447903,-613.88769168,0.00010958,2]
[340327778,1729049447914,-500.0,0.00010958,2]
[340327779,1729049447925,-500.0,0.00010958,2]
[340327780,1729049447935,-516.92259159,0.00010958,2]
[340327781,1729049447947,-500.0,0.00010958,2]
[340327782,1729049447956,-500.0,0.00010958,2]
[340327783,1729049447965,-500.0,0.00010958,2]
[340327784,1729049447975,-500.0,0.00010958,2]
[340327785,1729049447984,-500.0,0.00010958,2]
[340327786,1729049447994,-500.0,0.00010958,2]
[340327787,1729049448004,-500.0,0.00010958,2]
[340327788,1729049448014,-2041.1,0.00010958,2]
[340327789,1729049448023,-500.0,0.00010958,2]
[340327790,1729049448033,-2041.1,0.00010958,2]
[340327791,1729049448041,-500.0,0.00010958,2]
[340327792,1729049448051,-2041.1,0.00010958,2]
[340327793,1729049448061,-500.0,0.00010958,2]
[340327794,1729049448071,-2041.1,0.00010958,2]
[340327795,1729049448080,-2041.1,0.00010958,2]
[340327796,1729049448089,-1046.95,0.00010958,2]
[340327797,1729049448099,-1046.95,0.00010958,2]
[340327798,1729049448108,-1046.95,0.00010958,2]
[340327799,1729049448118,-1046.95,0.00010958,2]
[340327800,1729049448127,-1046.95,0.00010958,2]
[340327801,1729049448136,-500.0,0.00010958,2]
[340327802,1729049448146,-500.0,0.00010958,2]
[340327803,1729049448155,-500.0,0.00010958,2]
[340327804,1729049448164,-500.0,0.00010958,2]
[340327805,1729049448173,-500.0,0.00010958,2]
[340327806,1729049448182,-500.0,0.00010958,2]
[340327807,1729049448192,-500.0,0.00010958,2]
[340327808,1729049448202,-546.59793873,0.00010958,2]
[340327809,1729049448211,-500.0,0.00010958,2]
[340327810,1729049448220,-500.0,0.00010958,2]
[340327811,1729049448229,-500.0,0.00010958,2]
[340327812,1729049448238,-500.0,0.00010958,2]
[340327813,1729049448247,-235.38841536,0.00010958,2]
[340327814,1729049448256,-500.0,0.00010958,2]
[340327815,1729049448267,-447.39891215,0.00010958,2]
[340327816,1729049448278,-500.0,0.00010958,2]
[340327817,1729049448287,-583.1089374,0.00010958,2]
[340327818,1729049448296,-1164.46,0.00010958,2]
[340327819,1729049448305,-1164.46,0.00010958,2]
[340327820,1729049448315,-1164.46,0.00010958,2]
[340327821,1729049448324,-1164.46,0.00010958,2]
[340327822,1729049448333,-1164.46,0.00010958,2]
[340327823,1729049448344,-1972.86,0.00010958,2]
[340327824,1729049448353,-1972.86,0.00010958,2]
[340327825,1729049448362,-1972.86,0.00010958,2]
[340327826,1729049448371,-1972.86,0.00010958,2]
[340327827,1729049448380,-500.0,0.00010958,2]
[340327828,1729049448389,-1048.08,0.00010958,2]
[340327829,1729049448398,-500.0,0.00010958,2]
[340327830,1729049448408,-500.0,0.00010958,2]
[340327831,1729049448417,-1972.86,0.00010958,2]
[340327832,1729049448426,-500.0,0.00010958,2]
[340327833,1729049448435,-500.0,0.00010958,2]
[340327834,1729049448444,-500.0,0.00010958,2]
[340327835,1729049448455,-500.0,0.00010958,2]
[340327836,1729049448464,-500.0,0.00010958,2]
[340327837,1729049448473,-500.0,0.00010958,2]
[340327838,1729049448483,-500.0,0.00010958,2]
[340327839,1729049448492,-1048.08,0.00010958,2]
[340327840,1729049448501,-1048.08,0.00010958,2]
[340327841,1729049448510,-500.0,0.00010958,2]
[340327842,1729049448519,-1048.08,0.00010958,2]
[340327843,1729049448528,-500.0,0.00010958,2]
[340327844,1729049448537,-528.10151748,0.00010958,2]
[340327845,1729049448547,-1048.08,0.00010958,2]
[340327846,1729049448556,-500.0,0.00010958,2]
[340327847,1729049448565,-500.0,0.00010958,2]
[340327848,1729049448575,-500.0,0.00010958,2]
[340327849,1729049448584,-500.0,0.00010958,2]
[340327850,1729049448593,-500.0,0.00010958,2]
[340327851,1729049448602,-500.0,0.00010958,2]
[340327852,1729049448611,-500.0,0.00010958,2]
[340327853,1729049448620,-363.62685781,0.00010958,2]
[340327854,1729049448629,-500.0,0.00010958,2]
[340327855,1729049448638,-500.0,0.00010958,2]
[340327856,1729049448647,-500.0,0.00010958,2]
[340327857,1729049448657,-500.0,0.00010958,2]
[340327858,1729049448666,-392.93900919,0.00010958,2]
[340327859,1729049448676,-500.0,0.00010958,2]
[340327860,1729049448685,-500.0,0.00010958,2]
[340327861,1729049448694,-500.0,0.00010958,2]
[340327862,1729049448704,-500.0,0.00010958,2]
[340327863,1729049448713,-1591.14,0.00010958,2]
[340327864,1729049448723,-1591.14,0.00010958,2]
[340327865,1729049448732,-1591.14,0.00010958,2]
[340327866,1729049448741,-1591.14,0.00010958,2]
[340327867,1729049448751,-1591.14,0.00010958,2]
[340327868,1729049448760,-1013.2,0.00010958,2]
[340327869,1729049448769,-1013.2,0.00010958,2]
[340327870,1729049448778,-1013.2,0.00010958,2]
[340327871,1729049448787,-1013.2,0.00010958,2]
[340327872,1729049448797,-1013.2,0.00010958,2]
[340327873,1729049448806,-527.41,0.00010958,2]
[340327874,1729049448815,-527.41,0.00010958,2]
[340327875,1729049448824,-527.41,0.00010958,2]
[340327876,1729049448834,-527.41,0.00010958,2]
[340327877,1729049448843,-1063.98,0.00010958,2]
[340327878,1729049448851,-642.2,0.00010958,2]
[340327879,1729049448861,-1063.98,0.00010958,2]
[340327880,1729049448870,-642.2,0.00010958,2]
[340327881,1729049448879,-642.2,0.00010958,2]
[340327882,1729049448888,-527.41,0.00010958,2]
[340327883,1729049448897,-1063.98,0.00010958,2]
[340327884,1729049448906,-642.2,0.00010958,2]
[340327885,1729049448916,-642.2,0.00010958,2]
[340327886,1729049448926,-923.88,0.00010958,2]
[340327887,1729049448935,-1063.98,0.00010958,2]
[340327888,1729049448944,-923.88,0.00010958,2]
[340327889,1729049448956,-1063.98,0.00010958,2]
[340327890,1729049448965,-923.88,0.00010958,2]
[340327891,1729049448975,-923.88,0.00010958,2]
[340327892,1729049448984,-532.96,0.00010958,2]
[340327893,1729049448993,-923.88,0.00010958,2]
[340327894,1729049449002,-532.96,0.00010958,2]
[340327895,1729049449011,-532.96,0.00010958,2]
[340327896,1729049449021,-532.96,0.00010958,2]
[340327897,1729049449030,-306.9298736,0.00010958,2]
[340327898,1729049449039,-532.96,0.00010958,2]
[340327899,1729049449048,-2428.65,0.00010958,2]
[340327900,1729049449057,-2218.77120925,0.00010958,2]
[340327901,1729049449287,-209.87879075,0.00010958,2]
[340327902,1729049449297,-500.0,0.00010958,2]
[340327903,1729049449306,-2428.65,0.00010958,2]
[340327904,1729049449318,-317.69953501,0.00010958,2]
[340327905,1729049449328,-2428.65,0.00010958,2]
[340327906,1729049449337,-2428.65,0.00010958,2]
[340327907,1729049449348,-902.69,0.00010958,2]
[340327908,1729049449357,-902.69,0.00010958,2]
[340327909,1729049449366,-902.69,0.00010958,2]
[340327910,1729049449376,-902.69,0.00010958,2]
[340327911,1729049449385,-902.69,0.00010958,2]
[340327912,1729049449394,-500.0,0.00010958,2]
[340327913,1729049449404,-1437.5,0.00010958,2]
[340327914,1729049449413,-500.0,0.00010958,2]
[340327915,1729049449422,-1437.5,0.00010958,2]
[340327916,1729049449432,-500.0,0.00010958,2]
[340327917,1729049449441,-1437.5,0.00010958,2]
[340327918,1729049449450,-500.0,0.00010958,2]
[340327919,1729049449459,-1437.5,0.00010958,2]
[340327920,1729049449469,-500.0,0.00010958,2]
[340327921,1729049449477,-1437.5,0.00010958,2]
[340327922,1729049449487,-500.0,0.00010958,2]
[340327923,1729049449496,-239.30761879,0.00010958,2]
[340327924,1729049449505,-802.61,0.00010958,2]
[340327925,1729049449514,-802.61,0.00010958,2]
[340327926,1729049449523,-802.61,0.00010958,2]
[340327927,1729049449532,-802.61,0.00010958,2]
[340327928,1729049449542,-899.26,0.00010958,2]
[340327929,1729049449551,-802.61,0.00010958,2]
[340327930,1729049449561,-899.26,0.00010958,2]
[340327931,1729049449570,-899.26,0.00010958,2]
[340327932,1729049449580,-500.0,0.00010958,2]
[340327933,1729049449590,-899.26,0.00010958,2]
[340327934,1729049449599,-500.0,0.00010958,2]
[340327935,1729049449609,-500.0,0.00010958,2]
[340327936,1729049449619,-899.26,0.00010958,2]
[340327937,1729049449628,-500.0,0.00010958,2]
[340327938,1729049449637,-530.00111005,0.00010958,2]
[340327939,1729049449647,-500.0,0.00010958,2]
[340327940,1729049449656,-500.0,0.00010958,2]
[340327941,1729049449666,-203.81027499,0.00010958,2]
[340327942,1729049449675,-1312.5,0.00010958,2]
[340327943,1729049449684,-1312.5,0.00010958,2]
[340327944,1729049449693,-1312.5,0.00010958,2]
[340327945,1729049449705,-1312.5,0.00010958,2]
[340327946,1729049449714,-500.0,0.00010958,2]
[340327947,1729049449724,-1312.5,0.00010958,2]
[340327948,1729049449734,-500.0,0.00010958,2]
[340327949,1729049449744,-500.0,0.00010958,2]
[340327950,1729049449754,-500.0,0.00010958,2]
[340327951,1729049449763,-500.0,0.00010958,2]
[340327952,1729049449773,-1013.65,0.00010958,2]
[340327953,1729049449782,-1013.65,0.00010958,2]
[340327954,1729049449792,-1013.65,0.00010958,2]
[340327955,1729049449801,-1013.65,0.00010958,2]
[340327956,1729049449811,-1013.65,0.00010958,2]
[340327957,1729049449820,-500.0,0.00010958,2]
[340327958,1729049449830,-201.20761183,0.00010958,2]
[340327959,1729049449839,-173.10731834,0.00010958,2]
[340327960,1729049449852,-658.07952203,0.00010958,2]
[340327961,1729049449868,-303.25315963,0.00010958,2]
[340327962,1729049449878,-155.95378414,0.00010958,2]
[340327963,1729049450447,500.0,0.00027,60]
[340327965,1729049516640,193.01,9.994e-05,2]
[340327966,1729049529553,803.4,0.00010003,2]
[340327967,1729049671172,166.22,0.00010001,2]
[340327968,1729049676895,510.27,8.219e-05,2]
[340327969,1729049682242,168.73,7.99e-05,2]
[340327970,1729049701033,250.0,9.987e-05,2]
[340327971,1729049739873,250.0,9.988e-05,2]
[340327973,1729049817687,840.0,9.985e-05,2]
[340327975,1729049888551,153.10806145,0.00027,60]
[340327976,1729049941387,225.42,9.983e-05,2]
[340327977,1729049941583,225.42,9.986e-05,2]
[340327978,1729049941820,225.42,9.989e-05,2]
[340327979,1729049942064,225.42,9.991e-05,2]
[340327980,1729049942271,225.42,9.994e-05,2]
[340327981,1729049942503,225.42,9.996e-05,2]
[340327982,1729049942745,225.42,9.999e-05,2]
[340327983,1729049942937,225.42,0.00010002,2]
[340327984,1729049943344,225.42,0.00010004,2]
[340327985,1729049943747,225.42,0.00010007,2]
[340327986,1729049944359,225.42,0.0001001,2]
[340327987,1729049944394,225.42,0.00010012,2]
[340327988,1729049944444,225.42,0.00010015,2]
[340327989,1729049944734,225.42,0.00010017,2]
[340327990,1729049944955,225.42,0.0001002,2]
[340327991,1729049945158,225.42,0.00010023,2]
[340327992,1729049945379,225.42,0.00010025,2]
[340327993,1729049945591,225.42,0.00010028,2]
[340327994,1729049945795,225.42,0.00010031,2]
[340327995,1729049945999,225.42,0.00010033,2]
[340327997,1729050107731,225.09,9.979e-05,2]
[340327998,1729050107864,542.35,9.979e-05,2]
[340328011,1729050201617,161.68,9.983e-05,2]
[340328018,1729050237490,250.0,9.978e-05,2]
[340328019,1729050270766,625.24,8.219e-05,2]
[340328020,1729050314379,1029.77756922,0.00010222,2]
[340328021,1729050316463,200.0,9.977e-05,2]
[340328022,1729050346365,250.0,9.969e-05,2]
[340328023,1729050460692,532.2,9.984e-05,2]
[340328024,1729050543078,1000.0,9.984e-05,2]
[340328026,1729050601776,2531.2554,0.00010222,2]
[340328027,1729050632052,-744.06174367,0.0001027,2]
[340328028,1729050632063,-1109.11038931,0.0001027,2]
[340328029,1729050632077,-1316.83678172,0.0001027,2]
[340328030,1729050632088,-590.16069176,0.0001027,2]
[340328031,1729050632100,-530.14499983,0.0001027,2]
[340328032,1729050632111,-912.38802639,0.0001027,2]
[340328033,1729050632122,-508.47198714,0.0001027,2]
[340328034,1729050632135,-225.86096418,0.0001027,2]
[340328035,1729050632146,-572.94254851,0.00010322,2]
[340328036,1729050632160,-806.12715149,0.00010322,2]
[340328037,1729050632169,-625.24,0.00010474,2]
[340328038,1729050632178,-150.0,0.00010757,2]
[340328039,1729050632187,-300.0,0.00010757,2]
[340328040,1729050632197,-1000.0,0.00010758,2]
[340328041,1729050632206,-34326.99611731,0.00010758,2]
[340328042,1729050632217,-10096.21348269,0.00010758,2]
[340328043,1729050632226,-16351.6569,0.00010758,2]
[340328044,1729050632237,-1206.1128,0.00010758,2]
[340328045,1729050632247,-369.0549,0.00010851,2]
[340328046,1729050632258,-3325.8329,0.00010851,2]
[340328047,1729050632267,-7500.0,0.00010858,2]
[340328048,1729050632277,-171.556,0.00010899,2]
[340328049,1729050632289,-529.23904299,0.00010899,2]
[340328050,1729050632299,-529.23904299,0.00010899,2]
[340328051,1729050632309,-529.23904299,0.00010899,2]
[340328052,1729050632321,-529.23904299,0.00010899,2]
[340328053,1729050632332,-529.23904299,0.00010899,2]
[340328054,1729050632344,-529.23904299,0.00010899,2]
[340328055,1729050632354,-529.23904299,0.00010899,2]
[340328056,1729050632364,-529.23904299,0.00010899,2]
[340328057,1729050632373,-529.23904299,0.00010899,2]
[340328058,1729050632382,-580.17207536,0.00010899,2]
[340328059,1729050632391,-580.17207534,0.000109,2]
[340328060,1729050632401,-529.23904299,0.000109,2]
[340328061,1729050632410,-580.17207534,0.000109,2]
[340328062,1729050632421,-71544.7227512,0.00010951,2]
[340328063,1729050632432,-499.99,0.00010951,2]
[340328064,1729050632442,-2114.5970202,0.00010951,2]
[340328065,1729050632451,-8351.6157347,0.00010951,2]
[340328066,1729050632460,-1710.42622228,0.00010951,2]
[340328067,1729050632472,-1100.26961103,0.00010951,2]
[340328068,1729050632482,-2316.68894959,0.00010951,2]
[340328069,1729050632491,-500.0,0.00010958,2]
[340328070,1729050632501,-630.33129827,0.00010958,2]
[340328071,1729050632510,-802.25,0.00010958,2]
[340328072,1729050632519,-802.25,0.00010958,2]
[340328074,1729050632529,-802.25,0.00010958,2]
[340328075,1729050632538,-802.25,0.00010958,2]
[340328076,1729050632547,-802.25,0.00010958,2]
[340328077,1729050632556,-972.74,0.00010958,2]
[340328078,1729050632565,-972.74,0.00010958,2]
[340328079,1729050632574,-972.74,0.00010958,2]
[340328080,1729050632583,-972.74,0.00010958,2]
[340328081,1729050632593,-716.12955367,0.00010958,2]
[340328082,1729050632605,-256.61044633,0.00010958,2]
[340328083,1729050632615,-448.24955367,0.00010958,2]
[340328084,1729050632654,-51.75044633,0.00010958,2]
[340328085,1729050632664,-500.0,0.00010958,2]
[340328086,1729050632674,-414.68418741,0.00010958,2]
[340328087,1729050632687,-85.31581259,0.00010958,2]
[340328088,1729050632698,-500.0,0.00010958,2]
[340328089,1729050632707,-32.71913032,0.00010958,2]
[340328090,1729050632720,-467.28086968,0.00010958,2]
[340328091,1729050632731,-472.05880717,0.00010958,2]
[340328092,1729050632744,-105.31119283,0.00010958,2]
[340328093,1729050632755,-236.11510815,0.00010958,2]
[340328094,1729050632767,-341.25489185,0.00010958,2]
[340328095,1729050632776,-577.37,0.00010958,2]
[340328096,1729050632785,-500.0,0.00010958,2]
[340328097,1729050632795,-577.37,0.00010958,2]
[340328098,1729050632805,-500.0,0.00010958,2]
[340328099,1729050632815,-577.37,0.00010958,2]
[340328100,1729050632824,-392.05044874,0.00010958,2]
[340328101,1729050632834,-500.0,0.00010958,2]
[340328102,1729050632843,-500.0,0.00010958,2]
[340328103,1729050632852,-500.0,0.00010958,2]
[340328104,1729050632862,-500.0,0.00010958,2]
[340328105,1729050632871,-500.0,0.00010958,2]
[340328106,1729050632881,-500.0,0.00010958,2]
[340328107,1729050632891,-500.0,0.00010958,2]
[340328108,1729050632902,-500.0,0.00010958,2]
[340328109,1729050632911,-354.85916024,0.00010958,2]
[340328110,1729050632920,-500.0,0.00010958,2]
[340328111,1729050632930,-500.0,0.00010958,2]
[340328112,1729050632939,-500.0,0.00010958,2]
[340328113,1729050632948,-500.0,0.00010958,2]
[340328114,1729050632958,-500.0,0.00010958,2]
[340328115,1729050632968,-557.07,0.00010958,2]
[340328116,1729050632979,-557.07,0.00010958,2]
[340328117,1729050632991,-557.07,0.00010958,2]
[340328118,1729050633002,-557.07,0.00010958,2]
[340328119,1729050633011,-557.07,0.00010958,2]
[340328120,1729050633020,-500.0,0.00010958,2]
[340328121,1729050633030,-500.0,0.00010958,2]
[340328122,1729050633039,-500.0,0.00010958,2]
[340328123,1729050633049,-313.09295202,0.00010958,2]
[340328124,1729050633058,-500.0,0.00010958,2]
[340328125,1729050633067,-500.0,0.00010958,2]
[340328126,1729050633077,-500.0,0.00010958,2]
[340328127,1729050633086,-500.0,0.00010958,2]
[340328128,1729050633095,-500.0,0.00010958,2]
[340328129,1729050633105,-825.11,0.00010958,2]
[340328130,1729050633114,-825.11,0.00010958,2]
[340328131,1729050633124,-825.11,0.00010958,2]
[340328132,1729050633133,-825.11,0.00010958,2]
[340328133,1729050633143,-825.11,0.00010958,2]
[340328134,1729050633152,-181.60230505,0.00010958,2]
[340328135,1729050633161,-627.50591224,0.00010958,2]
[340328136,1729050633171,-500.0,0.00010958,2]
[340328137,1729050633180,-500.0,0.00010958,2]
[340328138,1729050633189,-516.8689356,0.00010958,2]
[340328139,1729050633198,-500.0,0.00010958,2]
[340328140,1729050633207,-500.0,0.00010958,2]
[340328141,1729050633216,-500.0,0.00010958,2]
[340328142,1729050633226,-500.0,0.00010958,2]
[340328143,1729050633235,-500.0,0.00010958,2]
[340328144,1729050633245,-500.0,0.00010958,2]
[340328145,1729050633254,-500.0,0.00010958,2]
[340328146,1729050633263,-500.0,0.00010958,2]
[340328147,1729050633272,-500.0,0.00010958,2]
[340328148,1729050633282,-500.0,0.00010958,2]
[340328149,1729050633291,-353.68335148,0.00010958,2]
[340328150,1729050633300,-500.0,0.00010958,2]
[340328151,1729050633309,-500.0,0.00010958,2]
[340328152,1729050633317,-500.0,0.00010958,2]
[340328153,1729050633326,-500.0,0.00010958,2]
[340328154,1729050633335,-500.0,0.00010958,2]
[340328155,1729050633345,-500.0,0.00010958,2]
[340328156,1729050633354,-500.0,0.00010958,2]
[340328157,1729050633363,-500.0,0.00010958,2]
[340328158,1729050633373,-500.0,0.00010958,2]
[340328159,1729050633382,-500.0,0.00010958,2]
[340328160,1729050633391,-500.0,0.00010958,2]
[340328161,1729050633401,-500.0,0.00010958,2]
[340328162,1729050633411,-500.0,0.00010958,2]
[340328163,1729050633420,-500.0,0.00010958,2]
[340328164,1729050633429,-500.0,0.00010958,2]
[340328165,1729050633439,-500.0,0.00010958,2]
[340328166,1729050633448,-500.0,0.00010958,2]
[340328167,1729050633457,-500.0,0.00010958,2]
[340328168,1729050633466,-500.0,0.00010958,2]
[340328169,1729050633476,-500.0,0.00010958,2]
[340328170,1729050633485,-500.0,0.00010958,2]
[340328171,1729050633494,-500.0,0.00010958,2]
[340328172,1729050633680,-500.0,0.00010958,2]
[340328173,1729050633691,-500.0,0.00010958,2]
[340328174,1729050633701,-500.0,0.00010958,2]
[340328175,1729050633710,-301.35160345,0.00010958,2]
[340328176,1729050633719,-500.0,0.00010958,2]
[340328177,1729050633729,-500.0,0.00010958,2]
[340328178,1729050633738,-500.0,0.00010958,2]
[340328179,1729050633748,-500.0,0.00010958,2]
[340328180,1729050633757,-500.0,0.00010958,2]
[340328181,1729050633766,-500.0,0.00010958,2]
[340328182,1729050633775,-475.02849609,0.00010958,2]
[340328183,1729050633784,-500.0,0.00010958,2]
[340328184,1729050633794,-500.0,0.00010958,2]
[340328185,1729050633803,-500.0,0.00010958,2]
[340328186,1729050633812,-500.0,0.00010958,2]
[340328187,1729050633822,-500.0,0.00010958,2]
[340328188,1729050633831,-1177.44,0.00010958,2]
[340328189,1729050633841,-1177.44,0.00010958,2]
[340328190,1729050633850,-1177.44,0.00010958,2]
[340328191,1729050633860,-1177.44,0.00010958,2]
[340328192,1729050633869,-1177.44,0.00010958,2]
[340328193,1729050633879,-597.44,0.00010958,2]
[340328194,1729050633889,-597.44,0.00010958,2]
[340328195,1729050633898,-597.44,0.00010958,2]
[340328196,1729050633907,-597.44,0.00010958,2]
[340328197,1729050633916,-597.44,0.00010958,2]
[340328198,1729050633926,-510.22067213,0.00010958,2]
[340328199,1729050633935,-500.0,0.00010958,2]
[340328200,1729050633945,-500.0,0.00010958,2]
[340328201,1729050633954,-500.0,0.00010958,2]
[340328202,1729050633967,-500.0,0.00010958,2]
[340328203,1729050633976,-500.0,0.00010958,2]
[340328204,1729050633986,-500.0,0.00010958,2]
[340328205,1729050633996,-500.0,0.00010958,2]
[340328206,1729050634006,-500.0,0.00010958,2]
[340328207,1729050634016,-500.0,0.00010958,2]
[340328208,1729050634025,-500.0,0.00010958,2]
[340328209,1729050634035,-500.0,0.00010958,2]
[340328210,1729050634045,-1008.01,0.00010958,2]
[340328211,1729050634054,-1008.01,0.00010958,2]
[340328212,1729050634064,-1008.01,0.00010958,2]
[340328213,1729050634073,-1008.01,0.00010958,2]
[340328214,1729050634082,-1008.01,0.00010958,2]
[340328215,1729050634091,-510.84642993,0.00010958,2]
[340328216,1729050634101,-500.0,0.00010958,2]
[340328217,1729050634110,-500.0,0.00010958,2]
[340328218,1729050634120,-500.0,0.00010958,2]
[340328219,1729050634129,-500.0,0.00010958,2]
[340328220,1729050634138,-500.0,0.00010958,2]
[340328221,1729050634148,-500.0,0.00010958,2]
[340328222,1729050634157,-500.0,0.00010958,2]
[340328223,1729050634166,-500.0,0.00010958,2]
[340328224,1729050634175,-500.0,0.00010958,2]
[340328225,1729050634184,-500.0,0.00010958,2]
[340328226,1729050634194,-500.0,0.00010958,2]
[340328227,1729050634204,-813.85,0.00010958,2]
[340328228,1729050634213,-813.85,0.00010958,2]
[340328229,1729050634222,-813.85,0.00010958,2]
[340328230,1729050634231,-1070.9,0.00010958,2]
[340328231,1729050634240,-1070.9,0.00010958,2]
[340328232,1729050634250,-1070.9,0.00010958,2]
[340328233,1729050634261,-1070.9,0.00010958,2]
[340328234,1729050634270,-1070.9,0.00010958,2]
[340328235,1729050634279,-1047.72,0.00010958,2]
[340328236,1729050634288,-1047.72,0.00010958,2]
[340328237,1729050634298,-1047.72,0.00010958,2]
[340328238,1729050634307,-1047.72,0.00010958,2]
[340328239,1729050634316,-1047.72,0.00010958,2]
[340328240,1729050634327,-500.0,0.00010958,2]
[340328241,1729050634336,-500.0,0.00010958,2]
[340328242,1729050634345,-500.0,0.00010958,2]
[340328243,1729050634354,-1038.3,0.00010958,2]
[340328244,1729050634363,-1528.5,0.00010958,2]
[340328245,1729050634373,-1038.3,0.00010958,2]
[340328246,1729050634382,-1528.5,0.00010958,2]
[340328247,1729050634391,-1038.3,0.00010958,2]
[340328248,1729050634400,-1528.5,0.00010958,2]
[340328249,1729050634410,-1528.5,0.00010958,2]
[340328250,1729050634419,-1528.5,0.00010958,2]
[340328251,1729050634429,-500.0,0.00010958,2]
[340328252,1729050634438,-500.0,0.00010958,2]
[340328253,1729050634448,-500.0,0.00010958,2]
[340328254,1729050634457,-500.0,0.00010958,2]
[340328255,1729050634467,-500.0,0.00010958,2]
[340328256,1729050634476,-500.0,0.00010958,2]
[340328257,1729050634486,-500.0,0.00010958,2]
[340328258,1729050634496,-500.0,0.00010958,2]
[340328259,1729050634505,-500.0,0.00010958,2]
[340328260,1729050634515,-500.0,0.00010958,2]